[Event "Titled Tuesday Blitz June 13 Early 2023"]
[White "Toncheva, Nadya"]
[Black "Skvortsov, Andrei"]
[WhiteFideId "2924056"]
[BlackFideId "24108600"]
[WhiteElo "2101"]
[BlackElo "2259"]
[Result "1/2-1/2"]
[Round "8"]
[TimeControl "180+2"]
[Date "2023.06.13"]
[WhiteClock "0:00:11"]
[BlackClock "0:00:20"]
[Board "66"]

1. e4 {[%clk 0:02:58]}  e6 {[%clk 0:02:58]} 2. d4 {[%clk 0:02:58]}  d5 {[%clk 0:02:56]} 3. Nd2 {[%clk 0:02:58]}  a6 {[%clk 0:02:54]} 4. Ngf3 {[%clk 0:02:57]}  c5 {[%clk 0:02:50]} 5. c3 {[%clk 0:02:57]}  Nc6 {[%clk 0:02:48]} 6. exd5 {[%clk 0:02:56]}  exd5 {[%clk 0:02:47]} 7. Bd3 {[%clk 0:02:55]}  Nf6 {[%clk 0:02:47]} 8. O-O {[%clk 0:02:55]}  cxd4 {[%clk 0:02:48]} 9. Re1+ {[%clk 0:02:54]}  Be7 {[%clk 0:02:48]} 10. Nxd4 {[%clk 0:02:53]}  Nxd4 {[%clk 0:02:47]} 11. cxd4 {[%clk 0:02:54]}  O-O {[%clk 0:02:47]} 12. h3 {[%clk 0:02:51]}  Bb4 {[%clk 0:02:45]} 13. a3 {[%clk 0:02:49]}  Ba5 {[%clk 0:02:44]} 14. b4 {[%clk 0:02:45]}  Bb6 {[%clk 0:02:45]} 15. Nf3 {[%clk 0:02:45]}  Re8 {[%clk 0:02:43]} 16. Bf4 {[%clk 0:02:39]}  Ne4 {[%clk 0:02:38]} 17. Be5 {[%clk 0:02:20]}  f6 {[%clk 0:02:28]} 18. Bf4 {[%clk 0:02:10]}  Bf5 {[%clk 0:02:24]} 19. Qb3 {[%clk 0:02:06]}  Qd7 {[%clk 0:02:20]} 20. Rad1 {[%clk 0:01:41]}  Rac8 {[%clk 0:02:15]} 21. Bxe4 {[%clk 0:01:30]}  Bxe4 {[%clk 0:02:12]} 22. Rc1 {[%clk 0:01:22]}  Bxf3 {[%clk 0:02:01]} 23. Qxf3 {[%clk 0:01:22]}  Bxd4 {[%clk 0:01:55]} 24. Red1 {[%clk 0:01:02]}  Rxc1 {[%clk 0:01:53]} 25. Bxc1 {[%clk 0:01:03]}  Re4 {[%clk 0:01:52]} 26. Bb2 {[%clk 0:00:55]}  Bxb2 {[%clk 0:01:29]} 27. Qxe4 {[%clk 0:00:55]}  dxe4 {[%clk 0:01:30]} 28. Rxd7 {[%clk 0:00:54]}  b5 {[%clk 0:01:31]} 29. Rd6 {[%clk 0:00:48]}  Bxa3 {[%clk 0:01:30]} 30. Rxa6 {[%clk 0:00:49]}  Bxb4 {[%clk 0:01:30]} 31. Rb6 {[%clk 0:00:49]}  Bc3 {[%clk 0:01:30]} 32. Rxb5 {[%clk 0:00:49]}  g6 {[%clk 0:01:31]} 33. Rb7 {[%clk 0:00:49]}  f5 {[%clk 0:01:30]} 34. Kf1 {[%clk 0:00:49]}  Bd4 {[%clk 0:01:30]} 35. Ke2 {[%clk 0:00:49]}  Bc5 {[%clk 0:01:30]} 36. g4 {[%clk 0:00:35]}  f4 {[%clk 0:01:19]} 37. Rc7 {[%clk 0:00:31]}  Bb6 {[%clk 0:01:12]} 38. Rc4 {[%clk 0:00:30]}  f3+ {[%clk 0:01:12]} 39. Kf1 {[%clk 0:00:29]}  e3 {[%clk 0:01:12]} 40. fxe3 {[%clk 0:00:29]}  Bxe3 {[%clk 0:01:11]} 41. Rc3 {[%clk 0:00:29]}  Bg5 {[%clk 0:01:12]} 42. Rxf3 {[%clk 0:00:30]}  Bh4 {[%clk 0:01:12]} 43. Ra3 {[%clk 0:00:29]}  h6 {[%clk 0:01:07]} 44. Ra7 {[%clk 0:00:29]}  Kh8 {[%clk 0:01:06]} 45. Rb7 {[%clk 0:00:29]}  Kg8 {[%clk 0:01:06]} 46. Kg2 {[%clk 0:00:30]}  Kf8 {[%clk 0:01:03]} 47. Kf3 {[%clk 0:00:30]}  Bg5 {[%clk 0:01:02]} 48. Kg3 {[%clk 0:00:28]}  Bd2 {[%clk 0:00:59]} 49. Kf3 {[%clk 0:00:27]}  Bg5 {[%clk 0:00:59]} 50. Ke4 {[%clk 0:00:27]}  Bh4 {[%clk 0:00:58]} 51. Ke5 {[%clk 0:00:26]}  Bg5 {[%clk 0:00:58]} 52. Ke6 {[%clk 0:00:25]}  Bh4 {[%clk 0:00:59]} 53. Rf7+ {[%clk 0:00:23]}  Kg8 {[%clk 0:00:58]} 54. Rb7 {[%clk 0:00:22]}  Kf8 {[%clk 0:00:58]} 55. Rb3 {[%clk 0:00:21]}  Bg5 {[%clk 0:00:53]} 56. Rf3+ {[%clk 0:00:21]}  Kg7 {[%clk 0:00:51]} 57. Rf1 {[%clk 0:00:22]}  Bh4 {[%clk 0:00:49]} 58. Rh1 {[%clk 0:00:20]}  Kg8 {[%clk 0:00:49]} 59. Rf1 {[%clk 0:00:19]}  Kg7 {[%clk 0:00:49]} 60. Rf7+ {[%clk 0:00:18]}  Kg8 {[%clk 0:00:49]} 61. Rf6 {[%clk 0:00:15]}  Kg7 {[%clk 0:00:48]} 62. Rf1 {[%clk 0:00:15]}  Bg5 {[%clk 0:00:46]} 63. Ke5 {[%clk 0:00:15]}  Bh4 {[%clk 0:00:45]} 64. Ke4 {[%clk 0:00:15]}  Kg8 {[%clk 0:00:44]} 65. Kf3 {[%clk 0:00:16]}  Kg7 {[%clk 0:00:45]} 66. Rd1 {[%clk 0:00:16]}  Kg8 {[%clk 0:00:43]} 67. Rd7 {[%clk 0:00:17]}  Kh8 {[%clk 0:00:43]} 68. Kg2 {[%clk 0:00:17]}  Kg8 {[%clk 0:00:44]} 69. Rd6 {[%clk 0:00:17]}  Kf7 {[%clk 0:00:43]} 70. Ra6 {[%clk 0:00:17]}  Kg7 {[%clk 0:00:43]} 71. g5 {[%clk 0:00:14]}  Bxg5 {[%clk 0:00:38]} 72. Kg3 {[%clk 0:00:14]}  h5 {[%clk 0:00:36]} 73. h4 {[%clk 0:00:14]}  Bf6 {[%clk 0:00:36]} 74. Rc6 {[%clk 0:00:13]}  Kf7 {[%clk 0:00:36]} 75. Rc4 {[%clk 0:00:12]}  Bd8 {[%clk 0:00:33]} 76. Rf4+ {[%clk 0:00:12]}  Kg7 {[%clk 0:00:33]} 77. Re4 {[%clk 0:00:13]}  Bc7+ {[%clk 0:00:31]} 78. Kf3 {[%clk 0:00:13]}  Bd8 {[%clk 0:00:31]} 79. Ke3 {[%clk 0:00:12]}  Kf6 {[%clk 0:00:29]} 80. Kd4 {[%clk 0:00:12]}  Kf5 {[%clk 0:00:28]} 81. Kd5 {[%clk 0:00:12]}  Bf6 {[%clk 0:00:27]} 82. Ra4 {[%clk 0:00:11]}  g5 {[%clk 0:00:20]} 83. hxg5 {[%clk 0:00:11]} 1/2-1/2


[Site "https://www.chess.com"]

[Event "Titled Tuesday Blitz June 13 Early 2023"]
[White "Kucuksari, Kaan"]
[Black "Liu, Casper"]
[WhiteFideId "6380166"]
[BlackFideId "1454153"]
[WhiteElo "2364"]
[BlackElo "2221"]
[Result "1-0"]
[Round "8"]
[TimeControl "180+2"]
[Date "2023.06.13"]
[WhiteClock "0:01:36"]
[BlackClock "0:01:33"]
[Board "67"]

1. e4 {[%clk 0:03:00]}  c5 {[%clk 0:02:57]} 2. Nf3 {[%clk 0:03:01]}  d6 {[%clk 0:02:57]} 3. d4 {[%clk 0:03:01]}  cxd4 {[%clk 0:02:58]} 4. Nxd4 {[%clk 0:03:02]}  Nf6 {[%clk 0:02:59]} 5. Nc3 {[%clk 0:03:03]}  Nc6 {[%clk 0:03:00]} 6. Bg5 {[%clk 0:03:02]}  Bd7 {[%clk 0:03:01]} 7. Bxf6 {[%clk 0:03:01]}  gxf6 {[%clk 0:03:00]} 8. Qd2 {[%clk 0:03:00]}  Rc8 {[%clk 0:03:00]} 9. O-O-O {[%clk 0:03:00]}  h5 {[%clk 0:03:01]} 10. Kb1 {[%clk 0:03:00]}  Bh6 {[%clk 0:03:01]} 11. Qe1 {[%clk 0:03:00]}  Bf4 {[%clk 0:03:01]} 12. Nde2 {[%clk 0:02:57]}  Be5 {[%clk 0:03:01]} 13. f4 {[%clk 0:02:58]}  Bxc3 {[%clk 0:03:01]} 14. Nxc3 {[%clk 0:02:59]}  Qa5 {[%clk 0:03:01]} 15. Bc4 {[%clk 0:02:56]}  a6 {[%clk 0:02:59]} 16. Bb3 {[%clk 0:02:55]}  b5 {[%clk 0:02:59]} 17. Qg3 {[%clk 0:02:46]}  Kf8 {[%clk 0:02:55]} 18. Nd5 {[%clk 0:02:42]}  Be6 {[%clk 0:02:53]} 19. Rhe1 {[%clk 0:02:26]}  Rg8 {[%clk 0:02:20]} 20. Qh4 {[%clk 0:02:19]}  Bg4 {[%clk 0:02:03]} 21. Rd3 {[%clk 0:02:19]}  Nb4 {[%clk 0:02:01]} 22. Nxb4 {[%clk 0:02:05]}  Qxb4 {[%clk 0:02:02]} 23. f5 {[%clk 0:01:56]}  Bxf5 {[%clk 0:01:56]} 24. a3 {[%clk 0:01:56]}  Rg4 {[%clk 0:01:51]} 25. axb4 {[%clk 0:01:56]}  Rxh4 {[%clk 0:01:48]} 26. exf5 {[%clk 0:01:57]}  Rxh2 {[%clk 0:01:48]} 27. Rde3 {[%clk 0:01:57]}  Rc7 {[%clk 0:01:47]} 28. Bd5 {[%clk 0:01:55]}  h4 {[%clk 0:01:47]} 29. c3 {[%clk 0:01:53]}  Ke8 {[%clk 0:01:38]} 30. Ka2 {[%clk 0:01:43]}  Ra7 {[%clk 0:01:36]} 31. Kb3 {[%clk 0:01:43]}  Kd8 {[%clk 0:01:37]} 32. Bxf7 {[%clk 0:01:38]}  Rxg2 {[%clk 0:01:37]} 33. Rh3 {[%clk 0:01:37]}  Rg4 {[%clk 0:01:36]} 34. Reh1 {[%clk 0:01:37]}  e5 {[%clk 0:01:33]} 35. fxe6 {[%clk 0:01:36]} 1-0


[Site "https://www.chess.com"]

[Event "Titled Tuesday Blitz June 13 Early 2023"]
[White "Mohammad Fahad, Rahman"]
[Black "Brunner, Nicolas"]
[WhiteFideId "10207791"]
[BlackFideId "620246"]
[WhiteElo "2339"]
[BlackElo "2319"]
[Result "1-0"]
[Round "8"]
[TimeControl "180+2"]
[Date "2023.06.13"]
[WhiteClock "0:01:31"]
[BlackClock "0:00:00"]
[Board "68"]

1. Nf3 {[%clk 0:02:59]}  c5 {[%clk 0:02:59]} 2. b3 {[%clk 0:02:58]}  Nc6 {[%clk 0:02:55]} 3. Bb2 {[%clk 0:02:59]}  d6 {[%clk 0:02:53]} 4. e3 {[%clk 0:02:59]}  Bg4 {[%clk 0:02:51]} 5. c4 {[%clk 0:03:00]}  Nf6 {[%clk 0:02:50]} 6. Be2 {[%clk 0:03:00]}  e6 {[%clk 0:02:50]} 7. O-O {[%clk 0:02:59]}  Be7 {[%clk 0:02:50]} 8. d4 {[%clk 0:02:59]}  Qd7 {[%clk 0:02:13]} 9. h3 {[%clk 0:02:52]}  Bf5 {[%clk 0:02:09]} 10. Nc3 {[%clk 0:02:49]}  O-O {[%clk 0:02:07]} 11. Nh4 {[%clk 0:02:42]}  Bg6 {[%clk 0:02:06]} 12. Nxg6 {[%clk 0:02:41]}  hxg6 {[%clk 0:02:06]} 13. Bf3 {[%clk 0:02:21]}  Rad8 {[%clk 0:01:43]} 14. dxc5 {[%clk 0:02:17]}  dxc5 {[%clk 0:01:42]} 15. Qxd7 {[%clk 0:02:17]}  Rxd7 {[%clk 0:01:39]} 16. Bxc6 {[%clk 0:02:17]}  bxc6 {[%clk 0:01:39]} 17. Rfd1 {[%clk 0:02:14]}  Rfd8 {[%clk 0:01:38]} 18. Rxd7 {[%clk 0:02:14]}  Rxd7 {[%clk 0:01:38]} 19. Rd1 {[%clk 0:02:15]}  Rxd1+ {[%clk 0:01:33]} 20. Nxd1 {[%clk 0:02:16]}  Nd7 {[%clk 0:01:31]} 21. Kf1 {[%clk 0:02:08]}  f5 {[%clk 0:01:31]} 22. Ke2 {[%clk 0:02:08]}  Kf7 {[%clk 0:01:30]} 23. Nc3 {[%clk 0:02:06]}  Bf6 {[%clk 0:01:28]} 24. Na4 {[%clk 0:02:05]}  Bxb2 {[%clk 0:01:26]} 25. Nxb2 {[%clk 0:02:06]}  e5 {[%clk 0:01:26]} 26. h4 {[%clk 0:02:03]}  Kf6 {[%clk 0:01:19]} 27. e4 {[%clk 0:01:55]}  Nf8 {[%clk 0:00:57]} 28. Nd3 {[%clk 0:01:34]}  Ne6 {[%clk 0:00:57]} 29. Ke3 {[%clk 0:01:34]}  a6 {[%clk 0:00:00]} 30. g3 {[%clk 0:01:31]} 1-0


[Site "https://www.chess.com"]

[Event "Titled Tuesday Blitz June 13 Early 2023"]
[White "Chernomordik, Pavel"]
[Black "Souleidis, Georgios"]
[WhiteFideId "2804530"]
[BlackFideId "4206827"]
[WhiteElo "2193"]
[BlackElo "2401"]
[Result "1/2-1/2"]
[Round "8"]
[TimeControl "180+2"]
[Date "2023.06.13"]
[WhiteClock "0:00:46"]
[BlackClock "0:00:20"]
[Board "70"]

1. e4 {[%clk 0:03:00]}  c5 {[%clk 0:02:59]} 2. Nc3 {[%clk 0:03:00]}  e6 {[%clk 0:02:59]} 3. f4 {[%clk 0:02:59]}  a6 {[%clk 0:02:58]} 4. g3 {[%clk 0:02:59]}  b5 {[%clk 0:02:57]} 5. Bg2 {[%clk 0:02:58]}  Bb7 {[%clk 0:02:57]} 6. Qe2 {[%clk 0:02:58]}  b4 {[%clk 0:02:57]} 7. Nd1 {[%clk 0:02:57]}  d5 {[%clk 0:02:56]} 8. exd5 {[%clk 0:02:56]}  Bxd5 {[%clk 0:02:57]} 9. Ne3 {[%clk 0:02:55]}  Bxg2 {[%clk 0:02:54]} 10. Qxg2 {[%clk 0:02:55]}  Nd7 {[%clk 0:02:48]} 11. Nf3 {[%clk 0:02:54]}  Ngf6 {[%clk 0:02:49]} 12. O-O {[%clk 0:02:54]}  Be7 {[%clk 0:02:48]} 13. b3 {[%clk 0:02:53]}  O-O {[%clk 0:02:48]} 14. Bb2 {[%clk 0:02:53]}  a5 {[%clk 0:02:49]} 15. a4 {[%clk 0:02:51]}  Nb6 {[%clk 0:02:43]} 16. Ne5 {[%clk 0:02:46]}  Qc7 {[%clk 0:02:35]} 17. d3 {[%clk 0:02:40]}  Nfd5 {[%clk 0:02:31]} 18. Rae1 {[%clk 0:02:33]}  Rad8 {[%clk 0:02:29]} 19. f5 {[%clk 0:02:25]}  Nxe3 {[%clk 0:02:23]} 20. Rxe3 {[%clk 0:02:24]}  exf5 {[%clk 0:01:52]} 21. Rxf5 {[%clk 0:02:19]}  f6 {[%clk 0:01:37]} 22. Nc6 {[%clk 0:02:08]}  Rde8 {[%clk 0:01:32]} 23. Nxa5 {[%clk 0:01:55]}  Nxa4 {[%clk 0:01:18]} 24. bxa4 {[%clk 0:01:51]}  Qxa5 {[%clk 0:01:18]} 25. Qd5+ {[%clk 0:01:49]}  Kh8 {[%clk 0:01:14]} 26. Qd7 {[%clk 0:01:44]}  Qd8 {[%clk 0:00:57]} 27. Qxd8 {[%clk 0:01:37]}  Bxd8 {[%clk 0:00:58]} 28. Rxe8 {[%clk 0:01:35]}  Rxe8 {[%clk 0:00:59]} 29. Kf2 {[%clk 0:01:32]}  Kg8 {[%clk 0:00:48]} 30. Rd5 {[%clk 0:01:31]}  Be7 {[%clk 0:00:43]} 31. Rd7 {[%clk 0:01:26]}  Kf7 {[%clk 0:00:41]} 32. Ra7 {[%clk 0:01:21]}  Ke6 {[%clk 0:00:41]} 33. Bc1 {[%clk 0:01:15]}  g5 {[%clk 0:00:39]} 34. Be3 {[%clk 0:01:14]}  Rc8 {[%clk 0:00:34]} 35. Ke2 {[%clk 0:01:11]}  h5 {[%clk 0:00:34]} 36. a5 {[%clk 0:01:08]}  Rb8 {[%clk 0:00:32]} 37. Rc7 {[%clk 0:01:01]}  Bd6 {[%clk 0:00:29]} 38. Rh7 {[%clk 0:00:56]}  Ra8 {[%clk 0:00:21]} 39. Rxh5 {[%clk 0:00:53]}  Rxa5 {[%clk 0:00:21]} 40. h4 {[%clk 0:00:50]}  gxh4 {[%clk 0:00:19]} 41. gxh4 {[%clk 0:00:49]}  Ra2 {[%clk 0:00:19]} 42. Kd1 {[%clk 0:00:47]}  Ra1+ {[%clk 0:00:20]} 43. Ke2 {[%clk 0:00:47]}  Ra2 {[%clk 0:00:19]} 44. Kd1 {[%clk 0:00:46]}  Ra1+ {[%clk 0:00:20]} 45. Ke2 {[%clk 0:00:46]}  Ra2 {[%clk 0:00:20]} 1/2-1/2


[Site "https://www.chess.com"]

[Event "Titled Tuesday Blitz June 13 Early 2023"]
[White "Sadykov, Ramil"]
[Black "brm72"]
[WhiteFideId "24113590"]
[WhiteElo "2245"]
[BlackElo "2528"]
[Result "0-1"]
[Round "8"]
[TimeControl "180+2"]
[Date "2023.06.13"]
[WhiteClock "0:00:00"]
[BlackClock "0:00:16"]
[Board "71"]

1. Nf3 {[%clk 0:02:55]}  c5 {[%clk 0:02:59]} 2. e4 {[%clk 0:02:54]}  e6 {[%clk 0:02:53]} 3. c3 {[%clk 0:02:49]}  d5 {[%clk 0:02:50]} 4. d3 {[%clk 0:02:40]}  Nc6 {[%clk 0:02:46]} 5. Nbd2 {[%clk 0:02:35]}  g6 {[%clk 0:02:46]} 6. g3 {[%clk 0:02:28]}  Bg7 {[%clk 0:02:45]} 7. Bg2 {[%clk 0:02:29]}  Nf6 {[%clk 0:02:46]} 8. O-O {[%clk 0:02:29]}  O-O {[%clk 0:02:46]} 9. Qe2 {[%clk 0:02:29]}  a5 {[%clk 0:02:43]} 10. a4 {[%clk 0:02:29]}  b6 {[%clk 0:02:42]} 11. Re1 {[%clk 0:02:13]}  Ba6 {[%clk 0:02:41]} 12. e5 {[%clk 0:02:05]}  Nd7 {[%clk 0:02:41]} 13. Nb1 {[%clk 0:01:56]}  Ndxe5 {[%clk 0:02:38]} 14. Nxe5 {[%clk 0:01:27]}  Nxe5 {[%clk 0:02:39]} 15. Rd1 {[%clk 0:01:28]}  Rc8 {[%clk 0:02:30]} 16. Na3 {[%clk 0:01:26]}  Re8 {[%clk 0:02:17]} 17. h4 {[%clk 0:01:23]}  h5 {[%clk 0:02:16]} 18. Bg5 {[%clk 0:01:17]}  Bf6 {[%clk 0:02:12]} 19. Bf4 {[%clk 0:01:06]}  Nc6 {[%clk 0:02:12]} 20. Qc2 {[%clk 0:01:02]}  e5 {[%clk 0:02:09]} 21. Be3 {[%clk 0:00:59]}  Qd7 {[%clk 0:02:07]} 22. Qb3 {[%clk 0:00:57]}  d4 {[%clk 0:01:59]} 23. Bc1 {[%clk 0:00:46]}  Rb8 {[%clk 0:01:54]} 24. Nc4 {[%clk 0:00:42]}  Qc7 {[%clk 0:01:44]} 25. Re1 {[%clk 0:00:32]}  Kg7 {[%clk 0:01:42]} 26. Kh2 {[%clk 0:00:29]}  Bc8 {[%clk 0:01:38]} 27. Bd2 {[%clk 0:00:26]}  Be6 {[%clk 0:01:37]} 28. Bh3 {[%clk 0:00:20]}  Bd5 {[%clk 0:01:33]} 29. Bg2 {[%clk 0:00:19]}  Be6 {[%clk 0:01:12]} 30. Bh3 {[%clk 0:00:19]}  Bxh3 {[%clk 0:01:07]} 31. Kxh3 {[%clk 0:00:19]}  Ne7 {[%clk 0:01:04]} 32. Kg2 {[%clk 0:00:13]}  Nf5 {[%clk 0:01:02]} 33. Qb5 {[%clk 0:00:09]}  Nd6 {[%clk 0:00:58]} 34. Nxd6 {[%clk 0:00:06]}  Qxd6 {[%clk 0:00:59]} 35. Re4 {[%clk 0:00:06]}  Red8 {[%clk 0:00:52]} 36. c4 {[%clk 0:00:03]}  Rb7 {[%clk 0:00:35]} 37. Rae1 {[%clk 0:00:03]}  Rc8 {[%clk 0:00:32]} 38. Kg1 {[%clk 0:00:02]}  Qc6 {[%clk 0:00:32]} 39. Qb3 {[%clk 0:00:03]}  Re7 {[%clk 0:00:30]} 40. Bg5 {[%clk 0:00:03]}  Rce8 {[%clk 0:00:29]} 41. Qd1 {[%clk 0:00:03]}  Re6 {[%clk 0:00:25]} 42. R1e2 {[%clk 0:00:03]}  Qd6 {[%clk 0:00:23]} 43. Qd2 {[%clk 0:00:03]}  Bd8 {[%clk 0:00:23]} 44. Re1 {[%clk 0:00:02]}  f6 {[%clk 0:00:21]} 45. Bh6+ {[%clk 0:00:01]}  Kf7 {[%clk 0:00:22]} 46. Qc1 {[%clk 0:00:02]}  f5 {[%clk 0:00:19]} 47. R4e2 {[%clk 0:00:02]}  e4 {[%clk 0:00:19]} 48. Qd2 {[%clk 0:00:01]}  Bf6 {[%clk 0:00:18]} 49. Bg5 {[%clk 0:00:01]}  Bg7 {[%clk 0:00:17]} 50. Qc1 {[%clk 0:00:01]}  Qc6 {[%clk 0:00:17]} 51. Qd2 {[%clk 0:00:00]}  Qxa4 {[%clk 0:00:16]} 0-1


[Site "https://www.chess.com"]

[Event "Titled Tuesday Blitz June 13 Early 2023"]
[White "Ajay Karthikeyan"]
[Black "Ginzburg, Yakov"]
[WhiteFideId "35011685"]
[BlackFideId "4157176"]
[WhiteElo "2321"]
[BlackElo "2305"]
[Result "1-0"]
[Round "8"]
[TimeControl "180+2"]
[Date "2023.06.13"]
[WhiteClock "0:01:26"]
[BlackClock "0:00:00"]
[Board "73"]

1. d4 {[%clk 0:03:00]}  d5 {[%clk 0:02:55]} 2. c4 {[%clk 0:03:01]}  c6 {[%clk 0:02:54]} 3. Nc3 {[%clk 0:03:02]}  Nf6 {[%clk 0:02:54]} 4. Nf3 {[%clk 0:03:03]}  dxc4 {[%clk 0:02:53]} 5. a4 {[%clk 0:03:00]}  Bf5 {[%clk 0:02:53]} 6. e3 {[%clk 0:03:00]}  e6 {[%clk 0:02:52]} 7. Bxc4 {[%clk 0:03:00]}  Bb4 {[%clk 0:02:52]} 8. O-O {[%clk 0:03:01]}  O-O {[%clk 0:02:52]} 9. Qb3 {[%clk 0:03:01]}  Qe7 {[%clk 0:02:50]} 10. a5 {[%clk 0:02:57]}  Bd6 {[%clk 0:02:16]} 11. h3 {[%clk 0:02:54]}  Ne4 {[%clk 0:02:00]} 12. Bd2 {[%clk 0:02:45]}  Nxd2 {[%clk 0:01:43]} 13. Nxd2 {[%clk 0:02:43]}  Bxh3 {[%clk 0:01:31]} 14. gxh3 {[%clk 0:02:40]}  Qg5+ {[%clk 0:01:30]} 15. Kh1 {[%clk 0:02:39]}  Qh5 {[%clk 0:01:28]} 16. Kg2 {[%clk 0:02:35]}  Qg6+ {[%clk 0:01:27]} 17. Kh1 {[%clk 0:02:25]}  Qf5 {[%clk 0:01:27]} 18. Kg2 {[%clk 0:02:17]}  Qg5+ {[%clk 0:01:25]} 19. Kf3 {[%clk 0:02:14]}  Qh5+ {[%clk 0:01:23]} 20. Kg2 {[%clk 0:02:09]}  Qg6+ {[%clk 0:01:22]} 21. Kh1 {[%clk 0:02:09]}  Qf5 {[%clk 0:01:21]} 22. f4 {[%clk 0:02:02]}  Qxh3+ {[%clk 0:01:21]} 23. Kg1 {[%clk 0:02:03]}  Qg3+ {[%clk 0:01:20]} 24. Kh1 {[%clk 0:02:04]}  Qh3+ {[%clk 0:01:20]} 25. Kg1 {[%clk 0:02:04]}  Qxe3+ {[%clk 0:01:10]} 26. Rf2 {[%clk 0:02:04]}  Qg3+ {[%clk 0:01:05]} 27. Rg2 {[%clk 0:02:03]}  Qe3+ {[%clk 0:01:04]} 28. Kh1 {[%clk 0:02:02]}  Qxf4 {[%clk 0:00:58]} 29. Nce4 {[%clk 0:02:02]}  Nd7 {[%clk 0:00:39]} 30. Rf1 {[%clk 0:02:01]}  Qh4+ {[%clk 0:00:39]} 31. Kg1 {[%clk 0:02:02]}  Bf4 {[%clk 0:00:36]} 32. Nf3 {[%clk 0:02:00]}  Qh6 {[%clk 0:00:36]} 33. Nfg5 {[%clk 0:01:53]}  Bxg5 {[%clk 0:00:27]} 34. Nxg5 {[%clk 0:01:50]}  Nf6 {[%clk 0:00:19]} 35. Qd3 {[%clk 0:01:42]}  Nd5 {[%clk 0:00:11]} 36. Bxd5 {[%clk 0:01:40]}  cxd5 {[%clk 0:00:11]} 37. Rf3 {[%clk 0:01:40]}  Qg6 {[%clk 0:00:10]} 38. Qd2 {[%clk 0:01:38]}  Rac8 {[%clk 0:00:09]} 39. Rh3 {[%clk 0:01:35]}  h6 {[%clk 0:00:08]} 40. Nf3 {[%clk 0:01:33]}  Qb1+ {[%clk 0:00:08]} 41. Kh2 {[%clk 0:01:33]}  Qc1 {[%clk 0:00:07]} 42. Qxh6 {[%clk 0:01:29]}  Qxh6 {[%clk 0:00:06]} 43. Rxh6 {[%clk 0:01:30]}  Rc4 {[%clk 0:00:05]} 44. Rh4 {[%clk 0:01:31]}  Rfc8 {[%clk 0:00:05]} 45. Ne5 {[%clk 0:01:31]}  Rc2 {[%clk 0:00:05]} 46. Rf4 {[%clk 0:01:29]}  Rxg2+ {[%clk 0:00:03]} 47. Kxg2 {[%clk 0:01:30]}  f6 {[%clk 0:00:02]} 48. Nd3 {[%clk 0:01:29]}  Rc4 {[%clk 0:00:02]} 49. Kf3 {[%clk 0:01:25]}  Ra4 {[%clk 0:00:01]} 50. b4 {[%clk 0:01:25]}  Ra3 {[%clk 0:00:02]} 51. Ke2 {[%clk 0:01:26]}  Kf7 {[%clk 0:00:01]} 52. Rf1 {[%clk 0:01:25]}  b6 {[%clk 0:00:02]} 53. Rc1 {[%clk 0:01:26]}  bxa5 {[%clk 0:00:02]} 54. Rc7+ {[%clk 0:01:27]}  Kg6 {[%clk 0:00:02]} 55. b5 {[%clk 0:01:28]}  Rb3 {[%clk 0:00:02]} 56. Rxa7 {[%clk 0:01:28]}  Rxb5 {[%clk 0:00:02]} 57. Ke3 {[%clk 0:01:27]}  Kf5 {[%clk 0:00:03]} 58. Rxg7 {[%clk 0:01:26]}  Rb4 {[%clk 0:00:02]} 59. Nc5 {[%clk 0:01:26]}  Rb1 {[%clk 0:00:02]} 60. Nd3 {[%clk 0:01:26]}  Ra1 {[%clk 0:00:02]} 61. Rh7 {[%clk 0:01:26]}  a4 {[%clk 0:00:03]} 62. Rh5+ {[%clk 0:01:26]}  Kg6 {[%clk 0:00:03]} 63. Rh2 {[%clk 0:01:26]}  a3 {[%clk 0:00:03]} 64. Rg2+ {[%clk 0:01:27]}  Kf7 {[%clk 0:00:00]} 65. Nb4 {[%clk 0:01:26]} 1-0


[Site "https://www.chess.com"]

[Event "Titled Tuesday Blitz June 13 Early 2023"]
[White "Zochowski, Kacper"]
[Black "Akylbek2021"]
[WhiteFideId "1125494"]
[WhiteElo "2235"]
[BlackElo "2512"]
[Result "1-0"]
[Round "8"]
[TimeControl "180+2"]
[Date "2023.06.13"]
[WhiteClock "0:00:16"]
[BlackClock "0:00:03"]
[Board "75"]

1. Nf3 {[%clk 0:03:00]}  Nf6 {[%clk 0:02:59]} 2. c4 {[%clk 0:02:59]}  g6 {[%clk 0:03:00]} 3. b3 {[%clk 0:03:00]}  Bg7 {[%clk 0:03:00]} 4. Bb2 {[%clk 0:03:01]}  O-O {[%clk 0:03:00]} 5. g3 {[%clk 0:03:00]}  c6 {[%clk 0:02:59]} 6. Bg2 {[%clk 0:03:00]}  d5 {[%clk 0:03:00]} 7. O-O {[%clk 0:03:01]}  Bg4 {[%clk 0:02:59]} 8. d3 {[%clk 0:03:01]}  Nbd7 {[%clk 0:02:58]} 9. Nbd2 {[%clk 0:03:01]}  Re8 {[%clk 0:02:58]} 10. h3 {[%clk 0:03:01]}  Bxf3 {[%clk 0:02:58]} 11. Nxf3 {[%clk 0:03:02]}  e5 {[%clk 0:02:58]} 12. cxd5 {[%clk 0:03:02]}  cxd5 {[%clk 0:02:59]} 13. Rc1 {[%clk 0:03:03]}  Rc8 {[%clk 0:02:54]} 14. Rxc8 {[%clk 0:03:01]}  Qxc8 {[%clk 0:02:55]} 15. Qa1 {[%clk 0:03:01]}  Qb8 {[%clk 0:02:51]} 16. e3 {[%clk 0:02:59]}  Bf8 {[%clk 0:02:38]} 17. h4 {[%clk 0:02:44]}  Bd6 {[%clk 0:02:36]} 18. Bh3 {[%clk 0:02:36]}  Nb6 {[%clk 0:02:31]} 19. Rb1 {[%clk 0:02:29]}  Nh5 {[%clk 0:02:25]} 20. Bg2 {[%clk 0:01:56]}  e4 {[%clk 0:01:46]} 21. dxe4 {[%clk 0:01:55]}  dxe4 {[%clk 0:01:47]} 22. Nh2 {[%clk 0:01:35]}  Bxg3 {[%clk 0:01:31]} 23. fxg3 {[%clk 0:01:35]}  Qxg3 {[%clk 0:01:22]} 24. Nf1 {[%clk 0:01:33]}  Qxh4 {[%clk 0:01:22]} 25. Rd1 {[%clk 0:01:18]}  Rc8 {[%clk 0:01:13]} 26. Bc3 {[%clk 0:01:14]}  Qg4 {[%clk 0:01:07]} 27. Be1 {[%clk 0:00:58]}  Nd7 {[%clk 0:01:02]} 28. Qd4 {[%clk 0:00:50]}  Ndf6 {[%clk 0:01:02]} 29. Nh2 {[%clk 0:00:46]}  Qg5 {[%clk 0:00:55]} 30. Bf2 {[%clk 0:00:43]}  Rc2 {[%clk 0:00:48]} 31. Qxa7 {[%clk 0:00:43]}  Qf5 {[%clk 0:00:42]} 32. Rf1 {[%clk 0:00:42]}  Ng4 {[%clk 0:00:38]} 33. Nxg4 {[%clk 0:00:41]}  Qxg4 {[%clk 0:00:39]} 34. Qxb7 {[%clk 0:00:39]}  Nf6 {[%clk 0:00:29]} 35. a4 {[%clk 0:00:35]}  Qg5 {[%clk 0:00:25]} 36. Qb5 {[%clk 0:00:31]}  Qh6 {[%clk 0:00:20]} 37. Qb8+ {[%clk 0:00:23]}  Kg7 {[%clk 0:00:20]} 38. Qe5 {[%clk 0:00:24]}  Rc6 {[%clk 0:00:14]} 39. a5 {[%clk 0:00:23]}  Re6 {[%clk 0:00:15]} 40. Qd4 {[%clk 0:00:24]}  Kg8 {[%clk 0:00:14]} 41. Bg3 {[%clk 0:00:24]}  Qg5 {[%clk 0:00:12]} 42. Bf4 {[%clk 0:00:24]}  Qg4 {[%clk 0:00:12]} 43. Rc1 {[%clk 0:00:23]}  h5 {[%clk 0:00:07]} 44. Be5 {[%clk 0:00:18]}  Ne8 {[%clk 0:00:07]} 45. Bh8 {[%clk 0:00:12]}  h4 {[%clk 0:00:06]} 46. Rc8 {[%clk 0:00:12]}  f6 {[%clk 0:00:05]} 47. Qd7 {[%clk 0:00:12]}  Kxh8 {[%clk 0:00:04]} 48. Rxe8+ {[%clk 0:00:12]}  Rxe8 {[%clk 0:00:02]} 49. Qxg4 {[%clk 0:00:13]}  f5 {[%clk 0:00:03]} 50. Qxg6 {[%clk 0:00:14]}  Rc8 {[%clk 0:00:04]} 51. Qh6+ {[%clk 0:00:14]}  Kg8 {[%clk 0:00:04]} 52. Qg5+ {[%clk 0:00:15]}  Kh8 {[%clk 0:00:04]} 53. Qh5+ {[%clk 0:00:15]}  Kg8 {[%clk 0:00:05]} 54. Qxf5 {[%clk 0:00:16]}  Rc1+ {[%clk 0:00:03]} 55. Kh2 {[%clk 0:00:16]} 1-0


[Site "https://www.chess.com"]